fUSD/lending_fUSD_20260111
["ID","MTS","AMOUNT","RATE_DAILY","PERIOD"]
[401391436,1768175439823,-745.83,0.00013478,2]
[401391438,1768175439832,-500.0,0.00013478,2]
[401391440,1768175439841,-500.0,0.00013478,2]
[401391442,1768175439850,-234.74838334,0.00013478,2]
[401391444,1768175439859,-199.44783854,0.00013478,2]
[401391446,1768175439868,-156.72477989,0.00013478,2]
[401391448,1768175439877,-345.93094323,0.00013478,2]
[401391450,1768175439886,-500.0,0.00013478,2]
[401391452,1768175439896,-500.0,0.00013478,2]
[401391454,1768175439905,-500.0,0.00013478,2]
[401391456,1768175439913,-500.0,0.00013478,2]
[401391458,1768175439922,-500.0,0.00013478,2]
[401391460,1768175439931,-500.0,0.00013478,2]
[401391461,1768175439940,-500.0,0.00013478,2]
[401391464,1768175439949,-170.989,0.00013478,2]
[401391465,1768175439958,-500.0,0.00013478,2]
[401391467,1768175439967,-500.0,0.00013478,2]
[401391469,1768175439976,-500.0,0.00013478,2]
[401391471,1768175439986,-500.0,0.00013478,2]
[401391473,1768175439995,-500.0,0.00013478,2]
[401391475,1768175440004,-500.0,0.00013478,2]
[401391477,1768175440013,-500.0,0.00013478,2]
[401391480,1768175440023,-500.0,0.00013478,2]
[401391481,1768175440032,-500.0,0.00013478,2]
[401391483,1768175440042,-500.0,0.00013478,2]
[401391486,1768175440053,-500.0,0.00013478,2]
[401391487,1768175440062,-500.0,0.00013478,2]
[401391489,1768175440074,-500.0,0.00013478,2]
[401391491,1768175440084,-500.0,0.00013478,2]
[401391493,1768175440093,-500.0,0.00013478,2]
[401391495,1768175440102,-500.0,0.00013478,2]
[401391497,1768175440113,-500.0,0.00013478,2]
[401391499,1768175440123,-500.0,0.00013478,2]
[401391502,1768175440133,-500.0,0.00013478,2]
[401391504,1768175440142,-500.0,0.00013478,2]
[401391506,1768175440153,-500.0,0.00013478,2]
[401391508,1768175440163,-500.0,0.00013478,2]
[401391510,1768175440172,-271.96494477,0.00013478,2]
[401391512,1768175440181,-500.0,0.00013478,2]
[401391515,1768175440191,-500.0,0.00013478,2]
[401391516,1768175440200,-500.0,0.00013478,2]
[401391518,1768175440209,-500.0,0.00013478,2]
[401391520,1768175440219,-500.0,0.00013478,2]
[401391523,1768175440228,-500.0,0.00013478,2]
[401391525,1768175440237,-500.0,0.00013478,2]
[401391526,1768175440247,-500.0,0.00013478,2]
[401391529,1768175440256,-500.0,0.00013478,2]
[401391530,1768175440266,-500.0,0.00013478,2]
[401391533,1768175440275,-500.0,0.00013478,2]
[401391534,1768175440284,-500.0,0.00013478,2]
[401391536,1768175440294,-500.0,0.00013478,2]
[401391539,1768175440303,-500.0,0.00013478,2]
[401391540,1768175440312,-500.0,0.00013478,2]
[401391543,1768175440322,-500.0,0.00013478,2]
[401391545,1768175440331,-1074.54,0.00013594,2]
[401391547,1768175440342,-500.0,0.00013698,2]
[401391549,1768175440353,-500.0,0.00013698,2]
[401391551,1768175440362,-500.0,0.00013698,2]
[401391552,1768175440371,-500.0,0.00013698,2]
[401391555,1768175440381,-500.0,0.00013698,2]
[401391557,1768175440390,-500.0,0.00013698,2]
[401391559,1768175440401,-500.0,0.00013698,2]
[401391561,1768175440410,-500.0,0.00013698,2]
[401391563,1768175440420,-500.0,0.00013698,2]
[401391565,1768175440429,-500.0,0.00013698,2]
[401391567,1768175440439,-350.30037326,0.00013698,2]
[401391569,1768175440454,-500.0,0.00013699,2]
[401391572,1768175440467,-500.0,0.00013699,2]
[401391574,1768175440481,-500.0,0.00013699,2]
[401391577,1768175440493,-650.0,0.00013699,2]
[401391579,1768175440504,-500.0,0.00013699,2]
[401391581,1768175440515,-500.0,0.00013699,2]
[401391584,1768175440528,-500.0,0.00013699,2]
[401391586,1768175440541,-500.0,0.00013699,2]
[401391588,1768175440554,-500.0,0.00013699,2]
[401391591,1768175440567,-500.0,0.00013699,2]
[401391593,1768175440579,-500.0,0.00013699,2]
[401391595,1768175440591,-500.0,0.00013699,2]
[401391598,1768175440603,-505.88746093,0.00013699,2]
[401391600,1768175440613,-745.83,0.00013752,2]
[401391602,1768175440625,-7392.17502301,0.00013796,2]
[401391605,1768175440638,-5443.08731831,0.00013819,2]
[401391607,1768175440650,-200.0,0.00013927,2]
[401391609,1768175440664,-1074.54,0.00014022,2]
[401391612,1768175440677,-745.83,0.00014026,2]
[401391614,1768175440690,-169.44,0.00014076,2]
[401391616,1768175440703,-200.0,0.000141,2]
[401391619,1768175440714,-1101.0,0.00014115,2]
[401391621,1768175440728,-287.0,0.00014262,2]
[401391624,1768175440740,-745.83,0.000143,2]
[401391626,1768175440753,-7392.17502301,0.00014309,2]
[401391628,1768175440765,-5443.08731831,0.00014329,2]
[401391631,1768175440777,-1074.54,0.0001445,2]
[401391633,1768175440789,-322.6107,0.00014479,2]
[401391635,1768175440801,-522.25798772,0.00014479,2]
[401391638,1768175440815,-500.0,0.00014479,2]
[401391640,1768175440826,-620.0,0.00014479,2]
[401391642,1768175440837,-651.90523039,0.00014479,2]
[401391645,1768175440849,-533.88981491,0.00014479,2]
[401391647,1768175440859,-998.0,0.00014479,2]
[401391649,1768175440869,-255.0,0.00014489,2]
[401391651,1768175440880,-150.0,0.00014524,2]
[401391654,1768175440893,-745.83,0.00014574,2]
[401391656,1768175440907,-3065.83,0.00014635,2]
[401391658,1768175440918,-5556.4,0.0001466,2]
[401391660,1768175440928,-1680.0,0.00014716,2]
[401391663,1768175440938,-600.0,0.00014717,2]
[401391665,1768175440950,-600.0,0.00014717,2]
[401391667,1768175440963,-367.10931886,0.00014717,2]
[401391670,1768175440976,-195.0,0.00014717,2]
[401391672,1768175440986,-600.0,0.00014717,2]
[401391674,1768175440997,-600.0,0.00014717,2]
[401391676,1768175441008,-250.0,0.00014717,2]
[401391678,1768175441020,-195.0,0.00014717,2]
[401391680,1768175441030,-162.74283988,0.00014717,2]
[401391683,1768175441041,-1000.0,0.00014732,2]
[401391685,1768175441058,-500.0,0.00014744,2]
[401391688,1768175441072,-7392.17502301,0.00014822,2]
[401391690,1768175441083,-5443.08731831,0.00014839,2]
[401391692,1768175441094,-745.84,0.00014848,2]
[401391694,1768175441106,-1101.0,0.00014858,2]
[401391697,1768175441117,-1074.54,0.00014878,2]
[401391699,1768175441128,-553.64373807,0.00015027,2]
[401391701,1768175441140,-151.0,0.00015033,2]
[401391703,1768175441152,-151.0,0.00015033,2]
[401391705,1768175441163,-21431.48,0.00015138,2]
[401391708,1768175441174,-500.0,0.00015176,2]
[401391710,1768175441185,-150.0,0.00015176,2]
[401391712,1768175441196,-500.0,0.00015176,2]
[401391714,1768175441207,-500.0,0.00015176,2]
[401391716,1768175441218,-250.0,0.00015176,2]
[401391717,1768175441229,-500.0,0.00015178,2]
[401391718,1768175441240,-500.0,0.00015231,2]
[401391719,1768175441251,-500.0,0.00015231,2]
[401391720,1768175441262,-150.0,0.00015231,2]
[401391721,1768175441273,-500.0,0.00015231,2]
[401391722,1768175441284,-517.05568559,0.00015286,2]
[401391723,1768175441295,-500.0,0.00015286,2]
[401391724,1768175441306,-500.0,0.00015286,2]
[401391727,1768175441317,-1074.54,0.00015305,2]
[401391729,1768175441328,-7392.17502301,0.00015335,2]
[401391731,1768175441339,-500.0,0.0001534,2]
[401391733,1768175441350,-500.0,0.0001534,2]
[401391735,1768175441361,-5443.08731831,0.00015349,2]
[401391738,1768175441372,-169.44,0.00015356,2]
[401391740,1768175441384,-150.0,0.00015386,5]
[401391742,1768175441395,-271.53296177,0.00015386,5]
[401391744,1768175441407,-500.0,0.00015395,2]
[401391747,1768175441418,-500.0,0.00015395,2]
[401391749,1768175441428,-500.0,0.0001545,2]
[401391751,1768175441439,-500.0,0.0001545,2]
[401391753,1768175441451,-500.0,0.00015505,2]
[401391755,1768175441462,-500.0,0.00015505,2]
[401391757,1768175441474,-500.0,0.0001556,2]
[401391760,1768175441485,-574.12855637,0.00015575,2]
[401391762,1768175441496,-500.0,0.00015614,2]
[401391764,1768175441506,-200.0,0.00015625,2]
[401391766,1768175441518,-1101.0,0.0001564,2]
[401391768,1768175441529,-500.0,0.00015665,2]
[401391770,1768175441540,-500.0,0.00015669,2]
[401391772,1768175441551,-999.0,0.00015715,3]
[401391775,1768175441562,-500.0,0.00015724,2]
[401391777,1768175441573,-1074.54,0.00015733,2]
[401391779,1768175441585,-500.0,0.00015779,2]
[401391781,1768175441596,-500.0,0.00015824,2]
[401391783,1768175441607,-500.0,0.00015824,2]
[401391786,1768175441618,-500.0,0.00015824,2]
[401391788,1768175441630,-162.7076,0.00015834,2]
[401391790,1768175441643,-334.5472959,0.00015848,2]
[401391792,1768175441655,-642.94,0.00015848,2]
[401391795,1768175441666,-7392.17502301,0.00015848,2]
[401391797,1768175441677,-5443.08731831,0.0001586,2]
[401391799,1768175441688,-500.0,0.00015879,2]
[401391801,1768175441700,-500.0,0.00015879,2]
[401391803,1768175441711,-533.33397299,0.00015879,2]
[401391806,1768175441723,-2400.0,0.000159,5]
[401391808,1768175441734,-1000.0,0.00015918,2]
[401391810,1768175441745,-500.0,0.00015934,2]
[401391812,1768175441756,-500.0,0.00015934,2]
[401391814,1768175441767,-500.0,0.00015988,2]
[401391817,1768175441779,-242.46445098,0.00016,2]
[401391819,1768175441790,-430.0,0.00016043,2]
[401391821,1768175441801,-1797.57,0.00016098,2]
[401391823,1768175441812,-595.37131296,0.00016123,2]
[401391825,1768175441823,-8995.69,0.00016128,2]
[401391828,1768175441834,-1074.54,0.00016161,2]
[401391830,1768175441845,-2351.0,0.00016188,2]
[401391832,1768175441856,-150.0,0.000162,2]
[401391834,1768175441866,-150.0,0.000162,2]
[401391836,1768175441877,-150.0,0.000162,2]
[401391839,1768175441888,-150.0,0.000162,2]
[401391841,1768175441900,-150.0,0.000162,2]
[401391843,1768175441911,-150.0,0.000162,2]
[401391845,1768175441922,-150.0,0.000162,2]
[401391847,1768175441933,-150.4343184,0.000162,2]
[401391850,1768175441945,-178.176763,0.000162,2]
[401391852,1768175441956,-150.0,0.000162,2]
[401391854,1768175441967,-150.37867968,0.000162,2]
[401391856,1768175441979,-150.0,0.000162,2]
[401391859,1768175441990,-150.0,0.000162,2]
[401391861,1768175442000,-150.0,0.000162,2]
[401391863,1768175442012,-150.0,0.000162,2]
[401391865,1768175442023,-150.0,0.0001622,2]
[401391867,1768175442034,-150.0,0.00016241,2]
[401391869,1768175442045,-150.0,0.00016261,2]
[401391872,1768175442057,-150.0,0.00016282,2]
[401391874,1768175442071,-150.0,0.00016302,2]
[401391876,1768175442082,-150.0,0.00016323,2]
[401391879,1768175442093,-150.0,0.00016343,2]
[401391881,1768175442105,-800.0,0.00016356,2]
[401391883,1768175442115,-500.0,0.00016356,2]
[401391885,1768175442126,-1600.0,0.00016356,2]
[401391887,1768175442137,-7392.17502301,0.00016361,2]
[401391889,1768175442149,-150.0,0.00016364,2]
[401391892,1768175442160,-5443.08731831,0.0001637,2]
[401391894,1768175442171,-150.0,0.00016384,2]
[401391896,1768175442182,-162.0,0.000164,2]
[401391898,1768175442193,-162.0,0.000164,2]
[401391900,1768175442204,-150.0,0.00016405,2]
[401391902,1768175442215,-1101.0,0.00016421,2]
[401391905,1768175442226,-150.0,0.00016425,2]
[401391907,1768175442236,-784.87,0.00016438,10]
[401391909,1768175442247,-17949.33,0.00016438,2]
[401391911,1768175442258,-800.0,0.00016438,2]
[401391913,1768175442269,-151.0,0.00016438,2]
[401391916,1768175442280,-164.95,0.0001644,2]
[401391918,1768175442291,-150.0,0.00016445,2]
[401391920,1768175442302,-150.0,0.00016466,2]
[401391922,1768175442312,-150.0,0.00016486,2]
[401391924,1768175442323,-150.0,0.00016507,2]
[401391926,1768175442333,-1000.0,0.00016515,2]
[401391929,1768175442344,-150.0,0.00016527,2]
[401391932,1768175442355,-150.0,0.00016548,2]
[401391935,1768175442366,-150.0,0.0001656,2]
[401391937,1768175442376,-150.0,0.00016568,2]
[401391939,1768175442387,-1000.0,0.00016573,2]
[401391942,1768175442398,-150.0,0.00016589,2]
[401391945,1768175442409,-1074.54,0.00016589,2]
[401391947,1768175442419,-150.0,0.00016609,2]
[401391949,1768175442429,-150.0,0.0001663,2]
[401391951,1768175442440,-169.44,0.00016635,2]
[401391953,1768175442450,-150.0,0.0001665,2]
[401391956,1768175442461,-150.0,0.0001665,2]
[401391958,1768175442471,-150.0,0.0001665,2]
[401391960,1768175442482,-150.0,0.0001665,2]
[401391962,1768175442493,-150.0,0.0001665,2]
[401391964,1768175442503,-150.0,0.0001667,2]
[401391966,1768175442513,-617.40005154,0.00016671,2]
[401391968,1768175442524,-150.0,0.00016691,2]
[401391970,1768175442534,-150.0,0.00016711,2]
[401391973,1768175442545,-150.0,0.00016732,2]
[401391975,1768175442555,-150.0,0.00016752,2]
[401391977,1768175442566,-150.0,0.00016773,2]
[401391979,1768175442576,-150.0,0.00016793,2]
[401391981,1768175442586,-500.0,0.00016799,2]
[401391983,1768175442596,-500.0,0.00016799,2]
[401391985,1768175442607,-150.0,0.000168,2]
[401391988,1768175442618,-150.0,0.000168,2]
[401391990,1768175442629,-150.0,0.00016814,2]
[401391992,1768175442639,-150.0,0.00016834,2]
[401391994,1768175442650,-180.24,0.0001684,2]
[401391996,1768175442660,-500.0,0.00016849,2]
[401391998,1768175442671,-150.0,0.00016855,2]
[401392000,1768175442681,-7392.17502301,0.00016874,2]
[401392003,1768175442691,-150.0,0.00016875,2]
[401392005,1768175442702,-5443.08731831,0.0001688,2]
[401392007,1768175442711,-1000.0,0.00016892,2]
[401392009,1768175442723,-150.0,0.00016895,2]
[401392011,1768175442733,-1797.57,0.00016903,2]
[401392013,1768175442743,-150.0,0.00016916,2]
[401392016,1768175442754,-870.1401705,0.00016917,2]
[401392018,1768175442764,-150.0,0.0001692,2]
[401392020,1768175442775,-917.1,0.00016927,2]
[401392022,1768175442786,-150.0,0.00016936,2]
[401392024,1768175442797,-150.0,0.00016957,2]
[401392026,1768175442807,-175.34750164,0.00016973,2]
[401392028,1768175442818,-150.0,0.00016977,2]
[401392031,1768175442829,-6902.28,0.00016981,2]
[401392033,1768175442839,-500.0,0.00016986,2]
[401392035,1768175442850,-150.0,0.00016998,2]
[401392037,1768175442860,-776.42891,0.00017,2]
[401392039,1768175442871,-250.0,0.00017,2]
[401392042,1768175442882,-150.0,0.00017018,2]
[401392044,1768175442894,-150.0,0.00017039,2]
[401392046,1768175442905,-180.22,0.0001704,2]
[401392048,1768175442916,-482.99,0.00017041,2]
[401392050,1768175442928,-150.0,0.00017059,2]
[401392052,1768175442939,-291.14417023,0.00017073,2]
[401392055,1768175442950,-500.0,0.00017073,2]
[401392057,1768175442961,-500.0,0.00017073,2]
[401392059,1768175442972,-500.0,0.00017073,2]
[401392061,1768175442982,-500.0,0.00017073,2]
[401392063,1768175442993,-634.0403311,0.00017073,2]
[401392065,1768175443003,-500.0,0.00017073,2]
[401392067,1768175443013,-500.0,0.00017073,2]
[401392070,1768175443023,-500.0,0.00017073,2]
[401392072,1768175443033,-500.45639995,0.00017073,2]
[401392074,1768175443044,-500.0,0.00017073,2]
[401392076,1768175443055,-500.0,0.00017073,2]
[401392078,1768175443069,-500.0,0.00017073,2]
[401392080,1768175443079,-500.0,0.00017073,2]
[401392082,1768175443089,-500.0,0.00017073,2]
[401392084,1768175443101,-500.0,0.00017073,2]
[401392087,1768175443112,-500.0,0.00017073,2]
[401392089,1768175443122,-500.0,0.00017073,2]
[401392091,1768175443133,-500.0,0.00017073,2]
[401392093,1768175443143,-500.0,0.00017073,2]
[401392095,1768175443153,-500.0,0.00017073,2]
[401392097,1768175443164,-500.0,0.00017073,2]
[401392099,1768175443174,-500.0,0.00017073,2]
[401392102,1768175443184,-500.0,0.00017073,2]
[401392104,1768175443194,-500.0,0.00017073,2]
[401392106,1768175443204,-500.0,0.00017073,2]
[401392108,1768175443214,-500.0,0.00017073,2]
[401392110,1768175443225,-150.0,0.0001708,2]
[401392112,1768175443235,-150.0,0.000171,2]
[401392114,1768175443246,-150.0,0.000171,2]
[401392116,1768175443255,-150.0,0.000171,2]
[401392119,1768175443266,-150.0,0.000171,2]
[401392121,1768175443276,-150.0,0.000171,2]
[401392123,1768175443286,-150.0,0.000171,2]
[401392125,1768175443296,-1000.0,0.00017112,2]
[401392127,1768175443307,-150.0,0.0001712,2]
[401392129,1768175443318,-1266.7,0.00017127,2]
[401392131,1768175443328,-150.0,0.00017141,2]
[401392134,1768175443338,-697.0,0.00017142,2]
[401392136,1768175443349,-150.0,0.00017161,2]
[401392137,1768175443359,-1000.0,0.00017175,2]
[401392138,1768175443370,-150.0,0.00017182,2]
[401392139,1768175443379,-3700.0,0.000172,6]
[401392140,1768175443402,-150.0,0.00017202,2]
[401392141,1768175443415,-1266.7,0.00017206,2]
[401392142,1768175443426,-346.92554585,0.00017217,2]
[401392143,1768175443438,-441.77219715,0.00017217,2]
[401392145,1768175443451,-998.0,0.00017218,2]
[401392148,1768175443463,-640.24385345,0.00017219,2]
[401392150,1768175443475,-150.0,0.00017223,2]
[401392152,1768175443486,-1101.0,0.00017243,2]
[401392155,1768175443498,-150.0,0.00017243,2]
[401392157,1768175443509,-697.0,0.00017249,2]
[401392159,1768175443520,-150.0,0.00017264,2]
[401392161,1768175443531,-150.0,0.0001728,2]
[401392164,1768175443542,-150.0,0.00017284,2]
[401392166,1768175443554,-1266.7,0.00017286,2]
[401392168,1768175443565,-180.24,0.00017295,2]
[401392170,1768175443577,-4900.0,0.000173,6]
[401392173,1768175443588,-150.0,0.00017305,2]
[401392175,1768175443599,-150.0,0.00017325,2]
[401392177,1768175443610,-158.5859407,0.00017327,2]
[401392179,1768175443621,-150.0,0.00017327,2]
[401392182,1768175443632,-150.0,0.00017327,2]
[401392184,1768175443643,-150.0,0.00017345,2]
[401392186,1768175443655,-834.0,0.0001736,2]
[401392188,1768175443666,-162.0,0.0001736,2]
[401392191,1768175443677,-162.0,0.0001736,2]
[401392193,1768175443687,-1266.7,0.00017365,2]
[401392195,1768175443699,-150.0,0.00017366,2]
[401392197,1768175443710,-150.0,0.00017382,2]
[401392200,1768175443725,-150.0,0.00017382,2]
[401392202,1768175443736,-150.0,0.00017386,2]
[401392205,1768175443748,-7392.17502301,0.00017387,2]
[401392207,1768175443761,-5443.08731831,0.0001739,2]
[401392209,1768175443773,-237.0,0.00017395,2]
[401392211,1768175443784,-150.0,0.000174,2]
[401392214,1768175443796,-150.0,0.000174,2]
[401392216,1768175443808,-1000.0,0.000174,2]
[401392218,1768175443819,-6100.0,0.000174,6]
[401392221,1768175443831,-150.0,0.00017407,2]
[401392223,1768175443843,-158.9254365,0.00017416,2]
[401392225,1768175443855,-326.1,0.00017422,2]
[401392228,1768175443868,-150.0,0.00017427,2]
[401392230,1768175443879,-158.04838682,0.00017437,2]
[401392232,1768175443891,-203.14661257,0.00017437,2]
[401392234,1768175443903,-1266.7,0.00017444,2]
[401392237,1768175443915,-150.0,0.00017448,2]
[401392239,1768175443926,-150.0,0.00017468,2]
[401392241,1768175443937,-150.0,0.00017489,2]
[401392243,1768175443948,-2000.0,0.000175,2]
[401392246,1768175443959,-1200.0,0.000175,6]
[401392248,1768175443970,-150.0,0.00017509,2]
[401392250,1768175443981,-1266.7,0.00017524,2]
[401392252,1768175443992,-150.0,0.0001753,2]
[401392254,1768175444003,-211.20104298,0.00017534,2]
[401392256,1768175444014,-150.0,0.0001755,2]
[401392259,1768175444026,-150.0,0.0001755,2]
[401392346,1768175444794,-150.0,0.0001755,2]
[401392349,1768175444818,-150.0,0.0001755,2]
[401392351,1768175444832,-150.0,0.0001755,2]
[401392353,1768175444842,-697.0,0.0001755,2]
[401392355,1768175444851,-150.0,0.0001757,2]
[401392357,1768175444860,-3240.0,0.00017581,2]
[401392359,1768175444870,-150.0,0.00017591,2]
[401392361,1768175444879,-182.03782617,0.00017593,2]
[401392363,1768175444889,-1000.0,0.000176,2]
[401392366,1768175444899,-1200.0,0.000176,6]
[401392369,1768175444908,-1266.7,0.00017603,2]
[401392372,1768175444917,-150.0,0.00017611,2]
[401392375,1768175444926,-500.78603367,0.00017621,2]
[401392377,1768175444935,-501.18596631,0.00017621,2]
[401392379,1768175444945,-500.88678731,0.00017621,2]
[401392381,1768175444957,-500.73774285,0.00017621,2]
[401392383,1768175444967,-500.0,0.00017621,2]
[401392385,1768175444976,-1000.0,0.00017621,2]
[401392387,1768175444986,-1000.0,0.00017621,2]
[401392389,1768175444995,-908.10299042,0.00017621,2]
[401392391,1768175445005,-1001.71787449,0.00017621,2]
[401392393,1768175445014,-500.0,0.00017621,2]
[401392395,1768175445025,-1000.0,0.00017621,2]
[401392397,1768175445034,-500.91201932,0.00017621,2]
[401392400,1768175445044,-500.66892907,0.00017621,2]
[401392402,1768175445052,-414.52858729,0.00017621,2]
[401392404,1768175445064,-1000.0,0.00017621,2]
[401392405,1768175445074,-647.0605734,0.00017621,2]
[401392407,1768175445083,-1000.0,0.00017621,2]
[401392409,1768175445092,-1000.0,0.00017621,2]
[401392411,1768175445102,-312.9434502,0.00017621,2]
[401392414,1768175445112,-1000.0,0.00017621,2]
[401392416,1768175445122,-150.0,0.00017632,2]
[401392418,1768175445132,-150.0,0.0001764,2]
[401392420,1768175445143,-1877.90563297,0.0001764,2]
[401392422,1768175445153,-150.0,0.00017652,2]
[401392424,1768175445163,-469.73455352,0.00017658,2]
[401392426,1768175445172,-25000.0,0.00017671,3]
[401392428,1768175445182,-150.0,0.00017673,2]
[401392430,1768175445191,-250.0,0.00017679,2]
[401392432,1768175445201,-500.0,0.00017679,2]
[401392434,1768175445211,-25000.0,0.0001768,3]
[401392436,1768175445220,-1266.7,0.00017683,2]
[401392439,1768175445231,-25000.0,0.00017689,3]
[401392441,1768175445240,-150.0,0.00017693,2]
[401392443,1768175445249,-25000.0,0.00017698,3]
[401392445,1768175445259,-1200.0,0.000177,6]
[401392447,1768175445268,-25000.0,0.00017706,3]
[401392449,1768175445277,-1797.57,0.00017708,2]
[401392450,1768175445286,-1000.0,0.00017709,2]
[401392452,1768175445296,-150.0,0.00017714,2]
[401392453,1768175445307,-25000.0,0.00017715,3]
[401392454,1768175445317,-1000.0,0.00017719,2]
[401392455,1768175445327,-25000.0,0.00017724,3]
[401392456,1768175445336,-800.0,0.00017726,7]
[401392457,1768175445355,-1600.0,0.00017726,7]
[401392458,1768175445366,-150.99,0.00017728,2]
[401392459,1768175445375,-299.99,0.00017728,4]
[401392461,1768175445385,-9999.99,0.00017728,2]
[401392463,1768175445396,-999.99,0.00017728,2]
[401392466,1768175445406,-25000.0,0.00017733,3]
[401392467,1768175445416,-150.0,0.00017734,2]
[401392469,1768175445425,-25000.0,0.00017742,3]
[401392472,1768175445435,-1000.0,0.00017743,2]
[401392474,1768175445444,-1000.0,0.00017744,2]
[401392476,1768175445454,-25000.0,0.0001775,3]
[401392478,1768175445464,-1000.0,0.00017751,2]
[401392480,1768175445473,-1000.0,0.00017752,2]
[401392482,1768175445482,-150.0,0.00017755,2]
[401392484,1768175445492,-331.10906462,0.00017756,2]
[401392486,1768175445501,-1000.0,0.00017756,2]
[401392488,1768175445511,-500.0,0.00017758,2]
[401392490,1768175445521,-25000.0,0.00017759,3]
[401392492,1768175445530,-1000.0,0.00017762,2]
[401392494,1768175445540,-1266.7,0.00017762,2]
[401392496,1768175445550,-663.93287602,0.00017767,2]
[401392498,1768175445560,-25000.0,0.00017768,3]
[401392500,1768175445571,-180.24,0.00017769,2]
[401392502,1768175445581,-150.0,0.0001777,2]
[401392504,1768175445591,-157.14731633,0.00017773,2]
[401392506,1768175445601,-150.0,0.00017775,2]
[401392508,1768175445611,-25000.0,0.00017777,3]
[401392511,1768175445621,-1000.0,0.00017783,2]
[401392513,1768175445631,-394.51485387,0.00017785,2]
[401392515,1768175445640,-25000.0,0.00017786,3]
[401392516,1768175445650,-1000.0,0.00017787,2]
[401392518,1768175445660,-206.13,0.00017788,2]
[401392520,1768175445670,-1000.0,0.00017788,2]
[401392522,1768175445679,-150.0,0.00017793,2]
[401392525,1768175445689,-25000.0,0.00017794,3]
[401392526,1768175445698,-150.0,0.00017795,2]
[401392529,1768175445708,-1000.0,0.00017796,2]
[401392530,1768175445718,-1000.0,0.000178,2]
[401392532,1768175445727,-1200.0,0.000178,6]
[401392535,1768175445737,-25000.0,0.00017803,3]
[401392537,1768175445747,-3292.0,0.00017807,2]
[401392539,1768175445757,-156.587,0.00017807,2]
[401392541,1768175445766,-25000.0,0.00017812,3]
[401392543,1768175445775,-1000.0,0.00017813,2]
[401392545,1768175445784,-150.0,0.00017816,2]
[401392546,1768175445794,-1755.84379,0.0001782,2]
[401392549,1768175445804,-1755.8438,0.0001782,2]
[401392551,1768175445813,-25000.0,0.00017821,3]
[401392555,1768175445824,-1000.0,0.00017822,2]
[401392557,1768175445834,-331.10906462,0.00017828,2]
[401392560,1768175445843,-1000.0,0.00017829,2]
[401392562,1768175445853,-25000.0,0.0001783,3]
[401392564,1768175445863,-1755.8438,0.0001783,2]
[401392566,1768175445873,-1000.0,0.00017831,2]
[401392568,1768175445882,-150.0,0.00017836,2]
[401392569,1768175445891,-25000.0,0.00017838,3]
[401392572,1768175445907,-1266.7,0.00017841,2]
[401392574,1768175445917,-1000.0,0.00017842,2]
[401392576,1768175445927,-1000.0,0.00017845,2]
[401392578,1768175445937,-683.82645385,0.00017846,2]